bitfinex-derivatives/quotes_SOLF0:USTF0_20250416
["timestamp","ask_amount","ask_price","bid_price","bid_amount"]
[1744794651997,0.05152883,125.49,125.46,0.05237413]
[1744794653498,8.02112883,125.49,125.46,8.02327413]
[1744794653696,0.05152883,125.49,125.46,0.05237413]
[1744794653900,7.97,125.48,125.46,0.05237413]
[1744794654101,0.05152883,125.49,125.46,0.05237413]
[1744794654501,8.02142883,125.49,125.46,8.02327413]
[1744794654696,0.05152883,125.49,125.46,8.02327413]
[1744794655099,8.02112883,125.49,125.46,8.02327413]
[1744794655496,0.05152883,125.49,125.47,7.9703]
[1744794655695,0.05152883,125.49,125.46,0.05237413]
[1744794656195,0.05152883,125.49,125.47,7.9703]
[1744794656604,8.02112883,125.49,125.46,0.05237413]
[1744794656802,0.05152883,125.49,125.46,0.05237413]
[1744794657203,0.05152883,125.49,125.47,7.9706]
[1744794657503,0.05152883,125.49,125.46,0.05237413]
[1744794657903,8.02122883,125.49,125.46,8.02327413]
[1744794658204,0.05152883,125.49,125.46,0.05237413]
[1744794658503,0.05152883,125.49,125.47,7.9705]
[1744794659201,0.05152883,125.49,125.46,0.05237413]
[1744794660201,599.12021365,125.54,125.51,7.9677]
[1744794660404,5.66946396,125.56,125.48,31.7]
[1744794660405,1.59286396,125.56,125.48,31.7]
[1744794661303,7.9679,125.52,125.48,7.9694]
[1744794661504,31.7,125.53,125.51,0.05213433]
[1744794661703,31.7,125.53,125.45,35.8869]
[1744794661902,39.6671,125.53,125.51,0.05087496]
[1744794662202,31.7,125.53,125.51,0.05199465]
[1744794662398,39.667,125.53,125.51,0.05199465]
[1744794663204,7.9674,125.52,125.51,0.05199465]
[1744794665705,17.05391365,125.52,125.45,35.8869]
[1744794665897,17.05391365,125.52,125.45,39.6716]
[1744794666305,7.9703,125.48,125.45,7.9716]
[1744794666806,8.02988456,125.48,125.45,8.02225643]
[1744794668301,0.05958456,125.48,125.45,0.05065643]
[1744794668706,31.7,125.53,125.46,31.7]
[1744794668905,7.9678,125.52,125.49,7.969]
[1744794669810,7.9678,125.52,125.49,8.01973506]
[1744794670914,31.7,125.53,125.49,0.05073506]
[1744794671411,1.59286396,125.56,125.49,31.75073506]
[1744794673011,31.7,125.58,125.49,31.75073506]
[1744794673208,31.7,125.58,125.49,31.7]
[1744794673403,31.7,125.58,125.52,0.05306489]
[1744794673608,112.1708389,125.6,125.53,31.7]
[1744794673810,7.9636,125.58,125.55,7.9652]
[1744794674011,7.9636,125.58,125.55,8.0207046]
[1744794674311,7.9633,125.59,125.55,8.0207046]
[1744794675014,7.9633,125.59,125.56,7.9648]
[1744794676911,7.9626,125.6,125.57,7.9642]
[1744794677109,31.7,125.61,125.53,35.9147]
[1744794677309,31.7,125.61,125.57,0.05619731]
[1744794677513,39.662,125.61,125.58,7.9635]
[1744794677714,39.662,125.61,125.57,0.05619731]
[1744794677914,31.7,125.61,125.57,0.05619731]
[1744794678120,7.9636,125.59,125.57,0.05619731]
[1744794679714,31.7,125.61,125.57,0.05619731]
[1744794680220,17.05391365,125.59,125.57,0.05619731]
[1744794680412,17.05391365,125.59,125.52,7.9672]
[1744794680617,17.05391365,125.56,125.49,35.7901]
[1744794681118,7.9662,125.54,125.5,7.9682]
[1744794681313,17.05391365,125.53,125.49,2.0786]
[1744794681512,17.05391365,125.53,125.47,2.0415]
[1744794681713,0.05028653,125.52,125.5,0.05662726]
[1744794682617,8.01808653,125.52,125.5,0.05662726]
[1744794683224,7.9681,125.51,125.5,0.05662726]
[1744794684423,39.6481,125.51,125.5,0.05662726]
[1744794688221,25.07180018,125.52,125.5,0.05662726]
[1744794688526,17.10420018,125.52,125.5,0.05662726]
[1744794689025,7.9681,125.51,125.5,0.05662726]
[1744794689225,39.6481,125.51,125.5,0.05662726]
[1744794691929,25.07180018,125.52,125.5,0.05662726]
[1744794692322,17.10420018,125.52,125.5,0.05662726]
[1744794692831,7.9681,125.51,125.5,0.05662726]
[1744794693130,17.10420018,125.52,125.5,0.05662726]
[1744794694029,7.9681,125.51,125.5,0.05662726]
[1744794697134,8.01808653,125.52,125.5,0.05662726]
[1744794697628,0.05028653,125.52,125.5,0.05662726]
[1744794697830,7.9681,125.51,125.5,0.05662726]
[1744794698336,0.05028653,125.52,125.5,0.05662726]
[1744794699136,7.9681,125.51,125.5,0.05662726]
[1744794700039,18.60716276,125.51,125.5,0.05662726]
[1744794701937,10.63906276,125.51,125.46,39.651]
[1744794702128,42.31906276,125.51,125.46,7.971]
[1744794702438,7.969,125.5,125.47,7.9702]
[1744794702629,42.31906276,125.51,125.47,7.9702]
[1744794703139,7.9695,125.49,125.48,0.05130341]
[1744794705540,0.05179889,125.5,125.48,0.05130341]
[1744794708148,8.02059889,125.5,125.48,8.02100341]
[1744794708742,8.02059889,125.5,125.48,0.05130341]
[1744794709647,8.02059889,125.5,125.48,8.02130341]
[1744794709847,0.05179889,125.5,125.48,0.05130341]
[1744794710149,0.05179889,125.5,125.48,8.02120341]
[1744794710751,0.05179889,125.5,125.48,0.05130341]
[1744794711847,8.02079889,125.5,125.48,0.05130341]
[1744794713548,7.9693,125.49,125.48,0.05130341]
[1744794713947,8.02079889,125.5,125.48,0.05130341]
[1744794715245,18.60836276,125.49,125.48,0.05130341]
[1744794715448,10.63906276,125.49,125.43,31.68]
[1744794715846,7.9712,125.47,125.44,7.9721]
[1744794716243,10.63906276,125.49,125.44,7.9721]
[1744794716649,0.05467065,125.48,125.45,0.0580271]
[1744794716951,7.9706,125.47,125.45,0.0580271]
[1744794717550,7.9706,125.47,125.45,8.0298271]
[1744794717951,8.02507065,125.48,125.45,8.0298271]
[1744794718250,0.05467065,125.48,125.45,8.0298271]
[1744794718748,7.9706,125.47,125.45,8.0298271]
[1744794719149,10.63906276,125.47,125.45,0.0580271]
[1744794719356,10.63906276,125.47,125.4,31.66]
[1744794719548,10.63906276,125.45,125.4,31.66]
[1744794719854,18.61136276,125.45,125.42,7.9734]
[1744794720455,18.66362462,125.45,125.42,8.02924529]
[1744794721353,7.9726,125.44,125.42,8.02924529]
[1744794721854,10.69132462,125.45,125.42,8.02924529]
[1744794722060,18.66352462,125.45,125.42,8.02924529]
[1744794722651,7.9726,125.44,125.42,0.05584529]
[1744794722853,10.69132462,125.45,125.42,0.05584529]
[1744794723253,7.9729,125.44,125.42,0.05584529]
[1744794725062,7.9732,125.43,125.42,0.05584529]
[1744794725259,18.61226276,125.43,125.42,0.05584529]
[1744794727963,10.63906276,125.43,125.42,0.05584529]
[1744794728163,7.9728,125.44,125.42,0.05584529]
[1744794729159,7.9732,125.43,125.42,0.05584529]
[1744794730163,18.61226276,125.43,125.42,0.05584529]
[1744794730867,18.61226276,125.43,125.36,6.3734]
[1744794730868,10.63906276,125.39,125.32,31.68]
[1744794731056,10.63906276,125.44,125.32,33.7761]
[1744794731057,10.63906276,125.37,125.32,33.7761]
[1744794731763,7.9784,125.35,125.33,0.05411028]
[1744794732358,0.05405879,125.36,125.33,0.05411028]
[1744794733059,8.03205879,125.36,125.33,0.05411028]
[1744794733259,0.05405879,125.36,125.33,0.05411028]
[1744794734066,31.68,125.41,125.33,0.05411028]
[1744794734366,31.68,125.41,125.33,10.63906276]
[1744794734565,10.63906276,125.4,125.34,7.9786]
[1744794734765,10.63906276,125.38,125.32,33.7761]
[1744794734964,10.63906276,125.36,125.32,33.7761]
[1744794735163,7.9786,125.35,125.32,2.0961]
[1744794735365,0.0530199,125.35,125.33,0.05173193]
[1744794736465,18.61796276,125.34,125.33,0.05173193]
[1744794737561,10.63906276,125.34,125.33,0.05173193]
[1744794737766,39.7115199,125.35,125.33,0.05173193]
[1744794738059,31.7330199,125.35,125.33,0.05173193]
[1744794738263,0.0530199,125.35,125.33,0.05173193]
[1744794739263,586.72026276,125.42,125.33,0.05173193]
[1744794739462,31.7,125.41,125.32,42.33906276]
[1744794739967,39.6749,125.41,125.38,7.9763]
[1744794740166,10.63906276,125.4,125.35,31.7]
[1744794740366,7.9764,125.38,125.35,39.6777]
[1744794740567,7.9764,125.38,125.36,0.05627011]
[1744794740768,8.0305324,125.38,125.36,0.05627011]
[1744794740969,0.0541324,125.38,125.36,8.03387011]
[1744794741171,0.0541324,125.38,125.36,0.05627011]
[1744794741571,0.0541324,125.38,125.37,7.977]
[1744794745874,0.0541324,125.38,125.37,10.1575]
[1744794747378,0.0541324,125.38,125.37,7.977]
[1744794749074,4.1853,125.44,125.37,7.977]
[1744794749075,33.7296,125.47,125.37,7.98]
[1744794749279,44.36866276,125.47,125.38,46.64626276]
[1744794749479,44.36866276,125.47,125.39,31.66]
[1744794749679,10.63906276,125.45,125.39,31.66]
[1744794749879,10.63906276,125.43,125.39,31.66]
[1744794750081,7.9742,125.42,125.39,7.9754]
[1744794750282,0.05109088,125.42,125.4,0.0565619]
[1744794750779,7.9744,125.41,125.4,0.0565619]
[1744794752081,18.61346276,125.41,125.4,0.0565619]
[1744794752282,10.63906276,125.39,125.33,31.66]
[1744794752684,7.9773,125.37,125.33,31.66]
[1744794752884,10.63906276,125.39,125.33,31.66]
[1744794753278,7.9766,125.38,125.33,31.66]
[1744794753584,0.05726069,125.37,125.36,7.9776]
[1744794753886,7.9754,125.4,125.35,0.05337996]
[1744794754084,0.0607909,125.38,125.35,0.05337996]
[1744794754587,0.0607909,125.38,125.36,7.9773]
[1744794757189,8.0371909,125.38,125.36,7.9773]
[1744794757390,0.0607909,125.38,125.36,7.9773]
[1744794760489,7.9776,125.36,125.35,0.05337996]
[1744794760693,42.31906276,125.37,125.3,7.9811]
[1744794760888,10.63906276,125.33,125.25,2.0356]
[1744794761091,10.63906276,125.31,125.25,2.0356]
[1744794761286,10.63906276,125.29,125.25,2.0356]
[1744794761790,8.04390593,125.28,125.26,0.05408292]
[1744794761984,0.06100593,125.28,125.26,0.05408292]
[1744794762391,8.04400593,125.28,125.26,0.05408292]
[1744794766990,42.31906276,125.27,125.22,62.0]
[1744794767194,42.31906276,125.27,125.19,607.9636]
[1744794767896,31.68,125.27,125.2,10.63906276]
[1744794768292,0.05178035,125.25,125.22,0.05420777]
[1744794768597,0.05178035,125.25,125.22,31.73420777]
[1744794769195,0.05178035,125.25,125.24,7.9846]
[1744794772695,0.05178035,125.25,125.23,12.3322]
[1744794773495,0.05178035,125.25,125.24,7.9853]
[1744794774401,0.05178035,125.25,125.23,7.9856]
[1744794774589,10.69084311,125.25,125.22,0.05420777]
[1744794775198,10.69084311,125.25,125.22,8.04030777]
[1744794775900,18.67554311,125.25,125.22,8.04030777]
[1744794776600,7.9853,125.24,125.22,0.05420777]
[1744794777002,10.69084311,125.25,125.22,0.05420777]
[1744794777206,10.63906276,125.23,125.2,7.9874]
[1744794777597,18.62526276,125.23,125.2,7.9874]
[1744794777899,10.63906276,125.21,125.0,574.72]
[1744794778101,7.9908,125.16,125.08,2.1045]
[1744794778298,0.05410071,125.12,125.11,7.9933]
[1744794778500,0.05410071,125.12,125.09,36.10083593]
[1744794778699,7.9905,125.16,125.09,36.09455251]
[1744794779005,0.05849851,125.12,125.09,36.0411]
[1744794779206,0.05849851,125.12,125.11,0.05135884]
[1744794780900,0.05849851,125.12,125.11,8.04495884]
[1744794781105,43.91612416,125.23,125.11,18.6904216]
[1744794781402,42.31906276,125.23,125.13,10.63906276]
[1744794781806,7.9879,125.2,125.15,7.9906]
[1744794782007,42.31906276,125.23,125.16,31.68]
[1744794782207,0.05678116,125.19,125.16,31.73463046]
[1744794782409,10.63906276,125.25,125.17,10.63906276]
[1744794782612,31.68,125.26,125.17,14.83276276]
[1744794782912,12.73276276,125.27,125.17,14.83276276]
[1744794783406,7.9849,125.25,125.2,7.9874]
[1744794783613,0.06103213,125.23,125.21,31.73070779]
[1744794784407,0.06103213,125.23,125.21,0.05070779]
[1744794784603,10.70009489,125.23,125.21,0.05070779]
[1744794785109,0.06103213,125.23,125.21,0.05070779]
[1744794787210,8.04723213,125.23,125.21,0.05070779]
[1744794787907,0.06103213,125.23,125.21,0.05070779]
[1744794788206,0.06103213,125.23,125.21,31.73070779]
[1744794790213,0.06103213,125.23,125.21,39.71780779]
[1744794790514,0.06103213,125.23,125.21,31.73070779]
[1744794791008,0.06103213,125.23,125.22,7.9865]
[1744794792411,7.9841,125.26,125.22,7.9865]
[1744794792609,10.63906276,125.33,125.21,31.73070779]
[1744794792812,46.62326276,125.35,125.25,10.63906276]
[1744794793013,46.62326276,125.35,125.28,7.9823]
[1744794793207,7.9791,125.34,125.26,35.9401]
[1744794793709,0.05040453,125.31,125.29,0.05701094]
[1744794795916,7.9814,125.3,125.29,0.05701094]
[1744794798020,7.9814,125.3,125.24,574.96]
[1744794798021,7.9832,125.28,125.24,574.96]
[1744794798318,17.07457836,125.26,125.2,2.0148]
[1744794798709,7.9856,125.24,125.2,2.0148]
[1744794799119,7.9862,125.23,125.2,2.0148]
[1744794799321,8.03823344,125.23,125.21,0.0542145]
[1744794799524,0.05203344,125.23,125.21,0.0542145]
[1744794801222,8.03823344,125.23,125.21,0.0542145]
[1744794802320,0.05203344,125.23,125.21,0.0542145]
[1744794802520,0.05203344,125.23,125.22,7.9865]
[1744794802721,0.05203344,125.23,125.21,0.0542145]
[1744794803023,0.05203344,125.23,125.21,8.0411145]
[1744794803622,8.03823344,125.23,125.21,0.0542145]
[1744794805724,7.9865,125.22,125.21,0.0542145]
[1744794810434,8.03823344,125.23,125.21,0.0542145]
[1744794810636,0.05203344,125.23,125.21,0.0542145]
[1744794811837,7.9865,125.22,125.21,0.0542145]
[1744794812238,31.66,125.22,125.16,31.68]
[1744794812537,7.9894,125.18,125.15,10.1054]
[1744794813134,7.9901,125.17,125.15,2.1148]
[1744794813332,8.04040843,125.17,125.15,0.05503455]
[1744794813839,0.05030843,125.17,125.15,0.05503455]
[1744794814439,0.05030843,125.17,125.16,7.9904]
[1744794815732,0.05030843,125.17,125.15,0.05503455]
[1744794816335,7.9904,125.16,125.15,0.05503455]
[1744794821336,8.04040843,125.17,125.15,0.05503455]
[1744794821541,0.05030843,125.17,125.16,7.9904]
[1744794824135,31.68,125.22,125.15,0.05503455]
[1744794824442,10.69732449,125.26,125.17,10.69732449]
[1744794824642,7.9861,125.23,125.18,4.3084]
[1744794824843,7.9861,125.23,125.2,7.9875]
[1744794825239,7.9861,125.23,125.2,8.0432847]
[1744794825442,8.03642536,125.23,125.2,8.0432847]
[1744794827043,7.9866,125.22,125.2,8.0432847]
[1744794828945,7.9866,125.22,125.2,0.0557847]
[1744794832549,0.05032536,125.23,125.2,0.0557847]
[1744794832848,10.69732449,125.22,125.2,0.0557847]
[1744794833347,7.9872,125.21,125.2,0.0557847]
[1744794834050,7.9894,125.18,125.13,2.1367]
[1744794834242,31.68,125.24,125.16,10.69732449]
[1744794834442,7.9849,125.25,125.18,10.69732449]
[1744794834644,31.68,125.26,125.19,37.9264]
[1744794834845,31.68,125.26,125.21,7.9869]
[1744794835149,7.9856,125.24,125.22,0.05185846]
[1744794837351,8.03998502,125.25,125.22,0.05185846]
[1744794837947,7.9854,125.24,125.22,0.05185846]
[1744794838146,0.05508502,125.25,125.22,8.03835846]
[1744794838752,8.03998502,125.25,125.22,8.03835846]
[1744794839454,7.9856,125.24,125.22,0.05185846]
[1744794839649,0.05508502,125.25,125.22,0.05185846]
[1744794839951,0.05508502,125.25,125.22,8.03805846]
[1744794840249,0.05508502,125.25,125.22,0.05185846]
[1744794840758,8.03998502,125.25,125.22,0.05185846]
[1744794841054,0.05508502,125.25,125.22,0.05185846]
[1744794841255,8.03998502,125.25,125.22,0.05185846]
[1744794841753,8.03998502,125.25,125.22,8.03805846]
[1744794843152,0.05508502,125.25,125.24,7.9853]
[1744794852068,625.45902449,125.3,125.22,42.38918295]
[1744794852267,31.64,125.3,125.22,42.33732449]
[1744794852568,39.6217,125.3,125.27,7.9831]
[1744794853170,39.6797801,125.3,125.27,8.03594338]
[1744794854271,39.6797801,125.3,125.28,7.9827]
[1744794854472,39.6797801,125.3,125.27,0.05284338]
[1744794854771,39.6797801,125.3,125.27,8.03584338]
[1744794855473,39.6797801,125.3,125.28,7.9826]
[1744794855674,31.6980801,125.3,125.27,0.05284338]
[1744794855878,0.0580801,125.3,125.27,0.05284338]
[1744794856568,0.0580801,125.3,125.28,7.9827]
[1744794856774,0.0580801,125.3,125.27,0.05284338]
[1744794857170,0.0580801,125.3,125.29,7.9821]
[1744794858077,7.9823,125.29,125.27,0.05284338]
[1744794858471,42.39540459,125.3,125.27,0.05284338]
[1744794858671,7.9827,125.28,125.27,0.05284338]
[1744794859673,18.68002449,125.28,125.27,0.05284338]
[1744794859878,7.9842,125.26,125.22,31.64]
[1744794860078,10.69732449,125.26,125.22,7.9864]
[1744794860877,10.69732449,125.24,125.16,31.64]
[1744794861076,31.64,125.24,125.16,31.64]
[1744794861276,42.33732449,125.24,125.16,93.64]
[1744794861478,7.9862,125.23,125.2,7.9874]
[1744794861770,42.33732449,125.24,125.16,31.64]
[1744794861977,7.9885,125.19,125.16,7.99]
[1744794862377,7.9885,125.19,125.16,8.04099184]
[1744794862571,7.9885,125.19,125.17,7.9897]
[1744794862767,42.39037425,125.21,125.16,0.05099184]
[1744794863875,50.37817425,125.21,125.17,7.9893]
[1744794864378,50.37817425,125.21,125.18,7.9889]
[1744794865674,31.69304976,125.21,125.2,7.9878]
[1744794865879,0.05304976,125.21,125.16,31.64]
[1744794866081,0.05304976,125.21,125.19,0.05984272]
[1744794866479,0.05304976,125.21,125.19,8.04794272]
[1744794866882,0.05304976,125.21,125.19,0.05984272]
[1744794867077,0.05304976,125.21,125.2,7.9878]
[1744794869483,0.05304976,125.21,125.19,8.04794272]
[1744794869980,0.05304976,125.21,125.2,7.9878]
[1744794870681,0.05304976,125.21,125.19,8.04824272]
[1744794871376,0.05304976,125.21,125.2,7.9878]
[1744794872182,0.05304976,125.21,125.19,8.04794272]
[1744794873782,0.05304976,125.21,125.2,7.9878]
[1744794877583,0.05304976,125.21,125.2,10.0106]
[1744794878985,31.62,125.26,125.2,2.0228]
[1744794879187,31.62,125.26,125.2,16.95332449]
[1744794879490,39.604,125.26,125.2,16.95332449]
[1744794879789,39.604,125.26,125.2,6.256]
[1744794879989,39.604,125.26,125.23,7.9854]
[1744794880190,0.05437159,125.24,125.23,7.9854]
[1744794883796,8.03967159,125.24,125.22,0.05852866]
[1744794884293,10.75169608,125.24,125.22,0.05852866]
[1744794885195,7.9859,125.23,125.22,0.05852866]
[1744794886698,31.62,125.23,125.17,2.043]
[1744794886898,10.69732449,125.22,125.14,4.3198]
[1744794887298,10.69732449,125.22,125.16,7.9898]
[1744794887599,7.9889,125.19,125.16,7.9898]
[1744794887794,42.31732449,125.2,125.15,7.9907]
[1744794888000,0.0528717,125.19,125.16,0.06058204]
[1744794888699,0.0528717,125.19,125.17,7.9892]
[1744794889397,8.0413717,125.19,125.17,7.9892]
[1744794889899,8.0413717,125.19,125.16,8.05058204]
[1744794891399,7.9895,125.18,125.16,0.06058204]
[1744794892197,0.0528717,125.19,125.17,7.9897]
[1744794892499,0.0528717,125.19,125.16,0.06058204]
[1744794893201,8.0416717,125.19,125.16,8.05048204]
[1744794893603,0.0528717,125.19,125.16,0.06058204]
[1744794894304,7.9863,125.23,125.21,7.9871]
[1744794894901,7.9863,125.23,125.2,7.9875]
[1744794895406,8.04156967,125.23,125.2,8.04340108]
[1744794897209,8.04156967,125.23,125.21,7.987]
[1744794897606,0.05526967,125.23,125.21,7.987]
[1744794897811,0.05526967,125.23,125.22,7.9865]
[1744794898205,39.6032,125.28,125.25,7.9842]
[1744794898909,112.1708389,125.3,125.22,42.31732449]
[1744794899111,112.1708389,125.3,125.26,10.69732449]
[1744794899310,112.1708389,125.3,125.28,10.69732449]
[1744794899706,112.1708389,125.3,125.29,7.9821]
[1744794900310,186.9513981,125.31,125.3,7.9814]
[1744794900611,2.0308,125.37,125.3,10.69732449]
[1744794900809,7.9766,125.38,125.32,10.69732449]
[1744794901007,10.69732449,125.36,125.29,31.62]
[1744794901201,42.29732449,125.36,125.29,31.62]
[1744794901712,0.05514233,125.34,125.31,0.05733924]
[1744794902108,0.05514233,125.34,125.32,7.9802]
[1744794903013,0.05514233,125.34,125.31,8.03328508]
[1744794903915,10.75246682,125.34,125.31,0.05278508]
[1744794904108,10.69732449,125.32,125.31,0.05278508]
[1744794904414,10.69732449,125.32,125.18,15.9776]
[1744794904415,10.69732449,125.32,125.21,31.58]
[1744794904610,10.69732449,125.27,125.18,31.58]
[1744794904911,10.69732449,125.27,125.21,7.9868]
[1744794904912,33.7844,125.26,125.21,7.9868]
[1744794905309,10.7493874,125.25,125.22,0.0564703]
[1744794908516,0.05206291,125.25,125.24,7.9853]
[1744794909513,2.1497,125.33,125.24,39.56]
[1744794909714,2.1497,125.33,125.25,17.09348497]
[1744794909914,31.58,125.35,125.25,17.09348497]
[1744794910517,0.06032839,125.31,125.3,7.9811]
[1744794910714,7.9793,125.34,125.3,7.9811]
[1744794910908,0.05660217,125.32,125.29,0.05887457]
[1744794911114,0.05660217,125.32,125.29,8.04067457]
[1744794911316,0.05660217,125.32,125.29,0.05887457]
[1744794912016,0.05660217,125.32,125.3,7.981]
[1744794912413,0.05660217,125.32,125.29,0.05887457]
[1744794913211,0.05660217,125.32,125.3,7.9811]
[1744794913814,0.05660217,125.32,125.29,8.04077457]
[1744794914315,0.05660217,125.32,125.29,0.05887457]
[1744794914615,0.05660217,125.32,125.3,7.981]
[1744794914815,0.05660217,125.32,125.29,0.05887457]
[1744794915219,0.05660217,125.32,125.29,8.04057457]
[1744794915921,0.05660217,125.32,125.29,0.05887457]
[1744794916425,0.05660217,125.32,125.29,8.04037457]
[1744794916721,0.05660217,125.32,125.29,0.05887457]
[1744794917419,0.05660217,125.32,125.29,8.04057457]
[1744794917919,8.03680217,125.32,125.29,8.04057457]
[1744794918814,7.9808,125.31,125.29,0.05887457]
[1744794919122,0.05660217,125.32,125.29,0.05887457]
[1744794919321,31.63660217,125.32,125.29,0.05887457]
[1744794919522,0.05660217,125.32,125.29,0.05887457]
[1744794919824,0.05660217,125.32,125.3,7.9811]
[1744794920120,0.05660217,125.32,125.29,0.05887457]
[1744794920526,0.05660217,125.32,125.31,7.9808]
[1744794921321,2.1234,125.38,125.3,31.58]
[1744794921719,2.1234,125.38,125.3,35.9192]
[1744794922025,2.1234,125.38,125.3,38.0389]
[1744794922429,0.05512043,125.35,125.33,0.0561494]
[1744794922726,0.05512043,125.35,125.34,7.9789]
[1744794924423,0.05512043,125.35,125.33,8.0353494]
[1744794924726,0.05512043,125.35,125.33,0.0561494]
[1744794925026,0.05512043,125.35,125.34,7.9789]
[1744794926628,31.58,125.39,125.38,7.9763]
[1744794926829,7.9748,125.41,125.38,7.9763]
[1744794927930,7.9748,125.41,125.38,8.02819333]
[1744794931032,7.9748,125.41,125.39,7.9757]
[1744794931833,7.9748,125.41,125.38,8.02789333]
[1744794933232,39.5342,125.42,125.39,7.9754]
[1744794933432,31.56,125.42,125.38,0.05189333]
[1744794933834,7.9748,125.41,125.38,8.02779333]
[1744794934229,7.9748,125.41,125.38,0.05189333]
[1744794934424,31.56,125.42,125.38,0.05189333]
[1744794934931,31.56,125.42,125.41,7.9744]
[1744794935334,31.56,125.42,125.38,0.05189333]
[1744794935634,31.56,125.42,125.4,7.9748]
[1744794936735,39.5339,125.42,125.39,7.9754]
[1744794937033,7.9739,125.42,125.39,7.9754]
[1744794937235,31.52,125.48,125.39,31.52]
[1744794937733,7.9713,125.46,125.43,7.9728]
[1744794938331,10.65216039,125.47,125.42,0.05112088]
[1744794939035,7.9731,125.44,125.42,0.05112088]
[1744794940030,7.9716,125.46,125.42,0.05112088]
[1744794940226,42.17216039,125.48,125.42,0.05112088]
[1744794940532,2.0275,125.5,125.47,7.9703]
[1744794940533,9.9965,125.5,125.47,7.9703]
[1744794940833,2.0275,125.5,125.45,31.52]
[1744794941037,39.4883,125.51,125.48,7.9695]
[1744794941442,31.52,125.51,125.47,0.06038145]
[1744794941633,48.54170618,125.51,125.47,0.06038145]
[1744794941929,2.1051,125.5,125.47,0.06038145]
[1744794942235,7.9697,125.49,125.47,0.06038145]
[1744794943641,31.52,125.51,125.47,0.06038145]
[1744794944035,39.4884,125.51,125.48,7.9694]
[1744794944235,39.4884,125.51,125.47,0.06038145]
[1744794944836,35.6504,125.54,125.47,0.06038145]
[1744794945138,35.6504,125.54,125.47,31.58038145]
[1744794945440,43.6169,125.54,125.5,7.9681]
[1744794945840,43.6169,125.54,125.51,0.05721115]
[1744794946139,7.9669,125.53,125.51,0.05721115]
[1744794946442,35.6504,125.54,125.51,0.05721115]
[1744794946642,35.6504,125.54,125.47,31.52]
[1744794947339,2.0207,125.55,125.47,31.52]
[1744794947544,9.9868,125.55,125.52,7.9672]
[1744794947840,10.04457256,125.55,125.52,8.01832437]
[1744794948040,0.05777256,125.55,125.54,7.9662]
[1744794949141,0.05777256,125.55,125.53,7.9666]
[1744794949644,0.05777256,125.55,125.52,0.05112437]
[1744794949845,0.05777256,125.55,125.53,7.9664]
[1744794950843,0.05777256,125.55,125.52,0.05112437]
[1744794951140,7.9665,125.54,125.52,0.05112437]
[1744794951849,0.05777256,125.55,125.52,0.05112437]
[1744794952242,7.9666,125.54,125.52,0.05112437]
[1744794952442,0.05777256,125.55,125.52,8.01842437]
[1744794952942,8.02367256,125.55,125.53,7.9668]
[1744794953146,0.05777256,125.55,125.52,0.05112437]
[1744794953750,0.05777256,125.55,125.54,7.9662]
[1744794954048,0.05777256,125.55,125.52,0.05112437]
[1744794954249,8.02367256,125.55,125.52,8.01852437]
[1744794954452,0.05777256,125.55,125.52,0.05112437]
[1744794955553,0.05777256,125.55,125.53,7.9665]
[1744794956052,0.05777256,125.55,125.52,0.05112437]
[1744794956356,8.02347256,125.55,125.52,0.05112437]
[1744794956753,8.02347256,125.55,125.52,8.01822437]
[1744794957755,7.9663,125.54,125.52,0.05112437]
[1744794958052,31.5,125.54,125.52,0.05112437]
[1744794958253,37.8096,125.54,125.52,0.05112437]
[1744794958455,7.9668,125.53,125.52,0.05112437]
[1744794958848,7.9668,125.53,125.47,31.5]
[1744794959050,7.9686,125.51,125.48,7.9696]
[1744794959552,7.9688,125.5,125.47,39.4704]
[1744794960257,8.02027521,125.5,125.47,39.5210501]
[1744794960658,0.05147521,125.5,125.48,7.97]
[1744794960959,0.05147521,125.5,125.47,31.5506501]
[1744794961160,0.05147521,125.5,125.47,0.0506501]
[1744794961753,0.05147521,125.5,125.49,7.9693]
[1744794963457,7.9652,125.56,125.48,48.48170618]
[1744794963658,2.1062,125.57,125.48,50.66490618]
[1744794963864,7.9634,125.59,125.51,17.02170618]
[1744794964060,7.9634,125.59,125.56,7.9646]
[1744794964662,8.0219521,125.59,125.56,8.02000544]
[1744794964962,0.0585521,125.59,125.56,0.05540544]
[1744794968558,0.0585521,125.59,125.57,7.9643]
[1744794970065,0.0585521,125.59,125.58,7.9636]